fUSD/lending_fUSD_20240218
["ID","MTS","AMOUNT","RATE_DAILY","PERIOD"]
[314403965,1708291847594,-150.0,0.00036999,7]
[314403966,1708291847603,-500.0,0.00036999,2]
[314403967,1708291847612,-150.0,0.00036999,2]
[314403968,1708291847621,-1014.3,0.00036999,2]
[314403969,1708291847630,-1014.3,0.00036999,2]
[314403970,1708291847639,-1014.3,0.00036999,2]
[314403971,1708291847648,-1014.3,0.00036999,2]
[314403972,1708291847658,-154.83,0.00036999,2]
[314403973,1708291847667,-500.0,0.00036999,2]
[314403974,1708291847676,-500.0,0.00036999,2]
[314403975,1708291847685,-831.66,0.00036999,2]
[314403976,1708291847695,-831.66,0.00036999,2]
[314403977,1708291847704,-21274.76047532,0.00037,15]
[314403978,1708291847713,-438828.57027607,0.00037,2]
[314403979,1708291847722,-95760.53238989,0.00037,2]
[314403980,1708291847732,-214.14486982,0.00037,4]
[314403981,1708291847741,-20794.77485067,0.00037,4]
[314403982,1708291847750,-850.0,0.00037,3]
[314403983,1708291847760,-199.32283048,0.00037,2]
[314403984,1708291847769,-1000.0,0.00037,7]
[314403985,1708291847778,-189.49787887,0.00037,2]
[314403986,1708291847787,-500.0,0.00037,2]
[314403987,1708291847796,-7123.24327113,0.00037,4]
[314403988,1708291847805,-250.0,0.00037,2]
[314403989,1708291847814,-17764.14197207,0.00037,2]
[314403990,1708291847823,-356.0,0.00037014,4]
[314403991,1708291847833,-3032.73646964,0.00037018,10]
[314403992,1708291847842,-3012.45,0.00037067,2]
[314403993,1708291847851,-470.48,0.00037075,2]
[314403994,1708291847859,-150.0,0.00037096,7]
[314403995,1708291847871,-220.29474113,0.00037096,7]
[314403996,1708291847880,-175.82948121,0.00037096,7]
[314403997,1708291847889,-150.0,0.00037096,7]
[314403998,1708291847898,-181.37207365,0.00037096,7]
[314403999,1708291847907,-180.71166526,0.00037096,7]
[314404000,1708291847917,-166.77329168,0.00037096,7]
[314404001,1708291847926,-161.35010473,0.00037096,7]
[314404002,1708291847935,-173.7287224,0.00037096,7]
[314404003,1708291847944,-517.83141611,0.00037098,2]
[314404004,1708291847954,-5347.79317175,0.00037099,7]
[314404005,1708291847963,-668.83234121,0.00037099,2]
[314404006,1708291847972,-1014.3,0.00037099,2]
[314404007,1708291847981,-1014.3,0.00037099,2]
[314404008,1708291847990,-1014.3,0.00037099,2]
[314404009,1708291847999,-500.0,0.00037099,2]
[314404010,1708291848020,-500.0,0.00037099,2]
[314404011,1708291848029,-500.0,0.00037099,2]
[314404012,1708291848038,-831.66,0.00037099,2]
[314404013,1708291848048,-831.66,0.00037099,2]
[314404014,1708291848058,-831.66,0.00037099,2]
[314404015,1708291848068,-93460.08,0.000371,7]
[314404016,1708291848081,-72534.0,0.000371,7]
[314404017,1708291848091,-430591.201364,0.000371,3]
[314404018,1708291848100,-1000.0,0.00037177,2]
[314404019,1708291848110,-200.0,0.000372,10]
[314404020,1708291848123,-3032.73646964,0.00037237,10]
[314404021,1708291848132,-150.0,0.0003726,2]
[314404022,1708291848142,-150.0,0.0003726,2]
[314404023,1708291848151,-150.0,0.0003726,2]
[314404024,1708291848162,-150.0,0.0003726,2]
[314404026,1708291848171,-250.0,0.00037274,2]
[314404028,1708291848180,-152.27397423,0.00037301,8]
[314404030,1708291848190,-173.5,0.00037353,2]
[314404032,1708291848198,-150.0,0.0003736,2]
[314404034,1708291848208,-5868.00647139,0.00037416,2]
[314404036,1708291848217,-3340.91575148,0.00037438,2]
[314404038,1708291848226,-300.0,0.00037448,2]
[314404040,1708291848236,-1145.40986562,0.00037453,4]
[314404042,1708291848246,-3032.73646964,0.00037455,10]
[314404045,1708291848255,-782.48,0.00037547,2]
[314404047,1708291848264,-508.62105001,0.00037548,2]
[314404049,1708291848273,-541.34,0.00037588,2]
[314404050,1708291848283,-150.0,0.00037621,2]
[314404053,1708291848292,-216.0,0.00037624,2]
[314404055,1708291848302,-180.0,0.00037671,2]
[314404057,1708291848311,-3032.73646964,0.00037673,10]
[314404059,1708291848320,-1155.99,0.00037674,2]
[314404061,1708291848329,-1500.0,0.00037692,2]
[314404063,1708291848338,-1346.64560044,0.000377,3]
[314404065,1708291848347,-273.19,0.0003771,2]
[314404067,1708291848356,-207.0,0.00037753,11]
[314404069,1708291848366,-168.69667078,0.0003778,2]
[314404071,1708291848376,-1296.47354769,0.00037787,28]
[314404073,1708291848385,-530.53555462,0.00037787,2]
[314404075,1708291848394,-330.88,0.000378,2]
[314404077,1708291848403,-165.83817092,0.00037863,7]
[314404079,1708291848413,-300.0,0.00037878,2]
[314404081,1708291848422,-172.30581894,0.00037878,2]
[314404083,1708291848431,-1014.3,0.00037878,2]
[314404085,1708291848440,-500.0,0.00037878,2]
[314404087,1708291848449,-831.66,0.00037878,2]
[314404089,1708291848458,-454.29723993,0.00037878,2]
[314404091,1708291848467,-339.53739081,0.00037878,2]
[314404092,1708291848477,-38458.39,0.00037878,7]
[314404093,1708291848486,-155361.45775359,0.00037879,2]
[314404094,1708291848495,-1014.3,0.00037879,2]
[314404095,1708291848504,-1014.3,0.00037879,2]
[314404096,1708291848514,-1014.3,0.00037879,2]
[314404097,1708291848523,-1014.3,0.00037879,2]
[314404098,1708291848533,-1014.3,0.00037879,2]
[314404099,1708291848542,-1014.3,0.00037879,2]
[314404100,1708291848551,-1014.3,0.00037879,2]
[314404101,1708291848560,-1014.3,0.00037879,2]
[314404102,1708291848570,-1014.3,0.00037879,2]
[314404103,1708291848579,-1014.3,0.00037879,2]
[314404104,1708291848589,-1014.3,0.00037879,2]
[314404105,1708291848598,-1014.35,0.00037879,2]
[314404106,1708291848607,-500.0,0.00037879,2]
[314404107,1708291848618,-500.0,0.00037879,2]
[314404108,1708291848627,-500.0,0.00037879,2]
[314404109,1708291848637,-500.0,0.00037879,2]
[314404110,1708291848647,-500.0,0.00037879,2]
[314404111,1708291848657,-500.0,0.00037879,2]
[314404112,1708291848667,-500.0,0.00037879,2]
[314404113,1708291848676,-500.0,0.00037879,2]
[314404114,1708291848685,-500.0,0.00037879,2]
[314404115,1708291848695,-200.38272644,0.00037879,2]
[314404116,1708291848705,-831.66,0.00037879,2]
[314404117,1708291848714,-831.66,0.00037879,2]
[314404118,1708291848726,-831.66,0.00037879,2]
[314404119,1708291848736,-831.66,0.00037879,2]
[314404120,1708291848745,-831.66,0.00037879,2]
[314404121,1708291848755,-831.66,0.00037879,2]
[314404122,1708291848764,-831.66,0.00037879,2]
[314404123,1708291848773,-831.66,0.00037879,2]
[314404124,1708291848782,-831.66,0.00037879,2]
[314404125,1708291848792,-831.82,0.00037879,2]
[314404126,1708291848801,-339.53739081,0.00037879,2]
[314404127,1708291848812,-454.29723993,0.00037879,2]
[314404128,1708291848821,-339.53739081,0.00037879,2]
[314404129,1708291848831,-454.29723993,0.00037879,2]
[314404130,1708291848842,-2566076.41256577,0.0003788,2]
[314404131,1708291848851,-200.0,0.00037887,3]
[314404132,1708291848861,-800.0,0.00037887,3]
[314404133,1708291848871,-200.0,0.00037887,10]
[314404134,1708291848881,-200.0,0.00037887,10]
[314404135,1708291848891,-1000.0,0.00037891,10]
[314404136,1708291848901,-170.59696996,0.00037891,8]
[314404137,1708291848911,-1000.0,0.00037891,10]
[314404138,1708291848921,-197.85293097,0.00037891,8]
[314404139,1708291848930,-1979.24785588,0.00037891,8]
[314404140,1708291848940,-329.33503637,0.00037891,8]
[314404141,1708291848951,-500.0,0.00037891,8]
[314404142,1708291848960,-1000.0,0.00037891,10]
[314404143,1708291848970,-3816.83355204,0.00037891,8]
[314404144,1708291848981,-413.69233818,0.00037891,8]
[314404145,1708291848990,-500.0,0.00037891,8]
[314404146,1708291849000,-1000.0,0.00037891,10]
[314404147,1708291849010,-3979.66825503,0.00037891,8]
[314404148,1708291849020,-553.81537132,0.00037891,8]
[314404149,1708291849033,-624.97119713,0.00037891,8]
[314404150,1708291849043,-3032.73646964,0.00037892,11]
[314404151,1708291849053,-339.53739081,0.00037899,2]
[314404152,1708291849063,-454.29723993,0.00037899,2]
[314404153,1708291849077,-653210.733593,0.000379,3]
[314404154,1708291849086,-12494.52,0.000379,30]
[314404155,1708291849096,-155.87937751,0.00037909,2]
[314404156,1708291849107,-150.0,0.00037961,2]
[314404157,1708291849117,-300.0,0.00038,39]
[314404158,1708291849127,-94326.0932713,0.00038,2]
[314404159,1708291849137,-305039.24229241,0.00038,2]
[314404160,1708291849147,-11750.92,0.00038,2]
[314404161,1708291849158,-150.0,0.00038023,2]
[314404162,1708291849168,-1902.50534642,0.00038058,2]
[314404163,1708291849178,-1500.0,0.00038066,2]
[314404164,1708291849188,-2547.13847757,0.00038082,13]
[314404165,1708291849198,-7759.39756695,0.00038082,14]
[314404166,1708291849208,-387.96987835,0.00038082,11]
[314404167,1708291849218,-6969.15022195,0.00038082,14]
[314404168,1708291849227,-1889.42838788,0.00038082,14]
[314404169,1708291849237,-500.0,0.00038082,7]
[314404170,1708291849247,-173.5,0.00038085,2]
[314404171,1708291849257,-21360.76935361,0.0003809,2]
[314404172,1708291849267,-22693.6316056,0.00038091,2]
[314404173,1708291849277,-8695.49,0.000381,2]
[314404174,1708291849290,-8695.49,0.000381,2]
[314404175,1708291849300,-8695.49,0.000381,2]
[314404176,1708291849310,-3032.73646964,0.0003811,11]
[314404177,1708291849321,-1296.47354768,0.00038141,29]
[314404178,1708291849330,-200.0,0.000382,12]
[314404179,1708291849340,-1522.516027,0.000382,26]
[314404180,1708291849350,-374.30001612,0.000382,2]
[314404181,1708291849360,-1721.42362553,0.000382,2]
[314404182,1708291849372,-904.69375382,0.00038207,2]
[314404183,1708291849381,-1160.19964318,0.00038207,2]
[314404184,1708291849391,-928.11450129,0.00038207,2]
[314404185,1708291849401,-1500.0,0.0003821,2]
[314404186,1708291849410,-3949.2743675,0.00038278,2]
[314404187,1708291849420,-14427.864002,0.00038278,2]
[314404188,1708291849430,-300.02,0.00038291,2]
[314404189,1708291849441,-3318.4901846,0.00038291,2]
[314404190,1708291849450,-151.0,0.00038304,7]
[314404191,1708291849461,-150.0,0.00038315,2]
[314404192,1708291849470,-3032.73646964,0.00038329,11]
[314404193,1708291849481,-150.0,0.00038332,2]
[314404194,1708291849491,-470.48,0.00038352,2]
[314404195,1708291849501,-500.0,0.00038356,20]
[314404196,1708291849511,-500.0,0.00038356,20]
[314404197,1708291849521,-500.0,0.00038356,20]
[314404198,1708291849531,-500.0,0.00038356,20]
[314404199,1708291849541,-500.0,0.00038356,20]
[314404200,1708291849552,-500.0,0.00038356,20]
[314404201,1708291849561,-500.0,0.00038356,20]
[314404202,1708291849571,-500.0,0.00038356,20]
[314404203,1708291849582,-552.95350844,0.00038356,20]
[314404204,1708291849591,-265.635,0.00038356,2]
[314404205,1708291849603,-1000.0,0.00038356,120]
[314404206,1708291849613,-1000.0,0.00038356,120]
[314404207,1708291849623,-1000.0,0.00038356,120]
[314404208,1708291849634,-1000.0,0.00038356,120]
[314404209,1708291849644,-312.84027509,0.00038356,120]
[314404210,1708291849654,-5000.0,0.00038356,30]
[314404211,1708291849665,-5097.88413044,0.00038356,30]
[314404212,1708291849676,-500.0,0.00038356,2]
[314404213,1708291849686,-297.77,0.00038356,2]
[314404214,1708291849696,-150.0,0.00038356,2]
[314404215,1708291849706,-596.2,0.00038356,15]
[314404216,1708291849716,-150.0,0.00038356,2]
[314404217,1708291849726,-150.0,0.00038356,2]
[314404218,1708291849735,-150.0,0.00038356,2]
[314404219,1708291849746,-150.0,0.00038356,2]
[314404220,1708291849755,-4483.35,0.0003838,2]
[314404221,1708291849765,-150.0,0.00038388,2]
[314404222,1708291849775,-567.63941867,0.00038406,5]
[314404223,1708291849786,-500.0,0.0003846,2]
[314404224,1708291849797,-1296.47354768,0.00038494,29]
[314404225,1708291849806,-150.0,0.00038498,2]
[314404226,1708291849816,-307.279025,0.000385,5]
[314404227,1708291849827,-150.0,0.00038541,2]
[314404228,1708291849837,-3032.73646964,0.00038547,12]
[314404229,1708291849847,-500.0,0.00038563,2]
[314404230,1708291849857,-1000.0,0.00038589,2]
[314404231,1708291849868,-293.0,0.000386,28]
[314404232,1708291849878,-500.0,0.000386,7]
[314404233,1708291849888,-305.0,0.000386,7]
[314404234,1708291849898,-302.0,0.000386,7]
[314404235,1708291849908,-503.0,0.000386,7]
[314404236,1708291849917,-155.173717,0.000386,10]
[314404237,1708291849927,-310.44,0.000386,2]
[314404238,1708291849937,-150.0,0.00038603,7]
[314404239,1708291849946,-422.92,0.0003863,2]
[314404240,1708291849955,-150.0,0.00038654,2]
[314404241,1708291849965,-5868.00647139,0.00038658,2]
[314404242,1708291849976,-500.0,0.00038666,2]
[314404243,1708291849986,-3340.91575148,0.00038669,2]
[314404244,1708291849995,-150.0,0.00038688,2]
[314404245,1708291850005,-150.0,0.000387,2]
[314404246,1708291850015,-673.29,0.000387,4]
[314404247,1708291850025,-150.0,0.00038702,2]
[314404248,1708291850035,-150.0,0.00038721,2]
[314404249,1708291850045,-150.0,0.00038747,2]
[314404250,1708291850054,-500.0,0.0003875,4]
[314404251,1708291850064,-339.53739081,0.00038757,2]
[314404252,1708291850075,-454.29723993,0.00038757,2]
[314404253,1708291850087,-500.0,0.00038758,4]
[314404254,1708291850097,-3032.73646964,0.00038765,12]
[314404255,1708291850106,-1187.68791766,0.00038765,2]
[314404256,1708291850118,-500.0,0.00038767,4]
[314404257,1708291850128,-16000.0,0.00038767,3]
[314404258,1708291850139,-500.0,0.0003877,2]
[314404259,1708291850149,-500.0,0.0003877,2]
[314404260,1708291850160,-300.0,0.0003877,2]
[314404261,1708291850170,-402.0,0.00038772,5]
[314404262,1708291850181,-500.0,0.00038776,4]
[314404263,1708291850191,-16000.0,0.00038776,3]
[314404264,1708291850200,-8494.07629844,0.00038776,3]
[314404265,1708291850210,-2208.33132599,0.00038776,3]
[314404266,1708291850220,-151.0,0.000388,10]
[314404267,1708291850230,-173.5,0.00038817,2]
[314404268,1708291850240,-1296.47354768,0.00038848,30]
[314404269,1708291850251,-151.0,0.00038852,7]
[314404270,1708291850261,-3503.4361012,0.00038873,2]
[314404271,1708291850271,-12799.0853268,0.00038873,2]
[314404272,1708291850281,-500.0,0.00038873,2]
[314404273,1708291850291,-150.0,0.00038898,2]
[314404274,1708291850301,-339.53739081,0.00038899,2]
[314404275,1708291850311,-454.29723993,0.00038899,2]
[314404276,1708291850321,-1065483.21747276,0.000389,3]
[314404277,1708291850331,-26160.42115816,0.000389,2]
[314404278,1708291850342,-3096.5,0.000389,30]
[314404279,1708291850351,-17764.14197207,0.000389,2]
[314404280,1708291850361,-531.27,0.00038904,2]
[314404281,1708291850373,-150.0,0.00038909,2]
[314404282,1708291850383,-200000.0,0.00038935,30]
[314404283,1708291850393,-150.0,0.0003896,2]
[314404284,1708291850403,-186331.33366215,0.0003897,2]
[314404285,1708291850413,-3057.597835,0.00038973,2]
[314404286,1708291850423,-11170.3066516,0.00038973,2]
[314404287,1708291850434,-500.0,0.00038976,2]
[314404288,1708291850444,-3032.73646964,0.00038984,12]
[314404289,1708291850454,-5000.0,0.00038986,2]
[314404290,1708291850464,-5000.0,0.00038986,2]
[314404291,1708291850474,-5000.0,0.00038986,2]
[314404292,1708291850484,-5000.0,0.00038986,2]
[314404293,1708291850494,-5000.0,0.00038986,2]
[314404294,1708291850503,-5000.0,0.00038986,2]
[314404295,1708291850514,-200.0,0.00038987,5]
[314404296,1708291850524,-100000.0,0.00039,9]
[314404297,1708291850534,-1000.0,0.00039,14]
[314404298,1708291850544,-300.0,0.00039,40]
[314404299,1708291850554,-8492.25025703,0.00039,30]
[314404300,1708291850563,-2004.78867812,0.00039,3]
[314404301,1708291850574,-991.159122,0.00039,14]
[314404302,1708291850584,-900.0,0.00039,3]
[314404303,1708291850594,-500.0,0.00039,7]
[314404304,1708291850604,-578.61,0.00039,7]
[314404305,1708291850615,-500.0,0.00039,7]
[314404306,1708291850625,-500.0,0.00039,7]
[314404307,1708291850635,-500.0,0.00039,7]
[314404308,1708291850645,-500.0,0.00039,7]
[314404309,1708291850656,-500.0,0.00039,7]
[314404310,1708291850666,-500.0,0.00039,7]
[314404311,1708291850675,-392.77,0.00039,7]
[314404312,1708291850686,-10408.3748715,0.00039,2]
[314404313,1708291850696,-300.0,0.00039,6]
[314404314,1708291850706,-151.0,0.00039,10]
[314404315,1708291850716,-150.0,0.00039028,2]
[314404316,1708291850726,-150.0,0.00039074,2]
[314404317,1708291850736,-500.0,0.0003908,2]
[314404318,1708291850745,-576.493235,0.000391,28]
[314404319,1708291850756,-150.1,0.00039119,2]
[314404320,1708291850765,-150.0,0.00039142,2]
[314404321,1708291850775,-168.94,0.00039145,2]
[314404322,1708291850785,-1500.0,0.00039147,2]
[314404323,1708291850795,-1500.0,0.00039148,2]
[314404324,1708291850805,-500.0,0.00039178,7]
[314404325,1708291850815,-500.0,0.00039183,2]
[314404326,1708291850825,-150.0,0.00039191,2]
[314404327,1708291850835,-200.0,0.000392,13]
[314404328,1708291850845,-151.0,0.000392,11]
[314404329,1708291850855,-184.28394638,0.00039201,12]
[314404330,1708291850865,-152.27397423,0.00039201,9]
[314404331,1708291850875,-1296.47354768,0.00039201,30]
[314404332,1708291850885,-3032.73646964,0.00039202,12]
[314404333,1708291850895,-150.0,0.00039229,2]
[314404334,1708291850905,-895.05,0.0003926,2]
[314404335,1708291850915,-150.0,0.00039265,2]
[314404336,1708291850925,-2611.7595688,0.00039273,2]
[314404337,1708291850935,-2165.9213025,0.00039273,2]
[314404338,1708291850945,-9541.5279765,0.00039273,2]
[314404339,1708291850956,-7912.7493013,0.00039273,2]
[314404340,1708291850966,-150.0,0.00039283,2]
[314404341,1708291850975,-500.0,0.00039287,2]
[314404342,1708291850985,-339.53739081,0.00039296,2]
[314404343,1708291850996,-454.29723993,0.00039296,2]
[314404344,1708291851006,-343190.71701388,0.00039297,2]
[314404345,1708291851016,-42716.93063292,0.00039297,2]
[314404346,1708291851026,-195172.30071046,0.00039299,2]
[314404347,1708291851200,-339.53739081,0.00039299,2]
[314404348,1708291851210,-454.29723993,0.00039299,2]
[314404349,1708291851220,-1153906.39897697,0.000393,2]
[314404350,1708291851229,-1953.57144897,0.00039301,2]
[314404351,1708291851240,-150.0,0.00039323,2]
[314404352,1708291851250,-150.0,0.00039331,2]
[314404353,1708291851259,-5000.0,0.00039331,2]
[314404354,1708291851269,-150.0,0.00039341,2]
[314404355,1708291851278,-150.0,0.00039366,2]
[314404356,1708291851288,-214.0,0.0003938,2]
[314404357,1708291851297,-500.0,0.0003939,2]
[314404358,1708291851307,-151.0,0.000394,7]
[314404359,1708291851317,-151.0,0.000394,11]
[314404360,1708291851326,-1196.99,0.00039405,2]
[314404361,1708291851335,-1500.0,0.00039418,2]
[314404362,1708291851345,-500.0,0.00039452,2]
[314404363,1708291851354,-796.905,0.00039452,2]
[314404364,1708291851363,-300.0,0.00039491,2]
[314404365,1708291851373,-500.0,0.00039493,2]
[314404366,1708291851382,-300.0,0.000395,6]
[314404367,1708291851392,-904.69375382,0.000395,2]
[314404368,1708291851401,-1160.19964318,0.000395,2]
[314404369,1708291851410,-374.30001612,0.000395,2]
[314404370,1708291851419,-928.11450129,0.000395,2]
[314404371,1708291851429,-1721.42362553,0.000395,2]
[314404372,1708291851438,-231.52190759,0.0003953,2]
[314404373,1708291851447,-773.95509972,0.0003954,11]
[314404374,1708291851457,-773.95509966,0.0003954,11]
[314404375,1708291851466,-773.95509966,0.0003954,11]
[314404376,1708291851475,-773.95509966,0.0003954,11]
[314404377,1708291851485,-773.95509966,0.0003954,11]
[314404378,1708291851494,-173.5,0.0003955,2]
[314404379,1708291851503,-150.0,0.00039555,2]
[314404380,1708291851513,-1500.0,0.00039572,2]
[314404381,1708291851522,-500.0,0.00039597,2]
[314404382,1708291851531,-22572.96240371,0.00039599,2]
[314404383,1708291851541,-152.42,0.000396,3]
[314404384,1708291851550,-152.42,0.000396,3]
[314404385,1708291851560,-152.42,0.000396,3]
[314404386,1708291851569,-152.42,0.000396,3]
[314404387,1708291851579,-152.42,0.000396,3]
[314404388,1708291851589,-152.42,0.000396,3]
[314404389,1708291851598,-152.42,0.000396,3]
[314404390,1708291851608,-152.42,0.000396,3]
[314404391,1708291851618,-152.42,0.000396,3]
[314404392,1708291851628,-4982.16,0.000396,3]
[314404393,1708291851639,-4982.16,0.000396,3]
[314404394,1708291851648,-4982.16,0.000396,3]
[314404395,1708291851657,-4982.16,0.000396,3]
[314404396,1708291851667,-4982.16,0.000396,3]
[314404397,1708291851677,-4982.16,0.000396,3]
[314404398,1708291851686,-4982.16,0.000396,3]
[314404399,1708291851696,-4982.16,0.000396,3]
[314404400,1708291851705,-4982.16,0.000396,3]
[314404401,1708291851714,-4982.16,0.000396,3]
[314404402,1708291851723,-4982.16,0.000396,3]
[314404403,1708291851733,-4982.16,0.000396,3]
[314404404,1708291851742,-4982.16,0.000396,3]
[314404405,1708291851752,-4982.16,0.000396,3]
[314404406,1708291851761,-4982.16,0.000396,3]
[314404407,1708291851771,-4982.16,0.000396,3]
[314404408,1708291851781,-4982.16,0.000396,3]
[314404409,1708291851790,-4982.16,0.000396,3]
[314404410,1708291851799,-4982.16,0.000396,3]
[314404411,1708291851808,-4982.16,0.000396,3]
[314404412,1708291851818,-151.0,0.000396,11]
[314404413,1708291851827,-300.0,0.00039617,2]
[314404414,1708291851837,-2553.07627319,0.00039621,2]
[314404415,1708291851846,-470.48,0.0003963,2]
[314404416,1708291851855,-150.0,0.00039631,2]
[314404417,1708291851865,-1902.50534642,0.00039637,2]
[314404418,1708291851874,-150.0,0.00039669,2]
[314404419,1708291851883,-150.0,0.00039674,2]
[314404420,1708291851892,-82198.5749771,0.00039689,2]
[314404421,1708291851901,-403.85187543,0.00039699,2]
[314404422,1708291851911,-2693.16,0.000397,4]
[314404423,1708291851920,-500.0,0.000397,2]
[314404424,1708291851930,-150.0,0.0003972,2]
[314404425,1708291851939,-72919.0803802,0.00039732,2]
[314404426,1708291851948,-63639.5857833,0.00039732,2]
[314404427,1708291851957,-54360.0911864,0.00039732,2]
[314404428,1708291851966,-45080.5965895,0.00039732,2]
[314404429,1708291851975,-1720.0830363,0.00039732,2]
[314404430,1708291851985,-6283.9706261,0.00039732,2]
[314404431,1708291851994,-339.53739081,0.00039758,2]
[314404432,1708291852003,-454.29723993,0.00039758,2]
[314404433,1708291852012,-835399.13186858,0.00039759,2]
[314404434,1708291852022,-150.0,0.00039783,2]
[314404435,1708291852030,-2147.26910796,0.000398,7]
[314404436,1708291852040,-151.0,0.000398,11]
[314404437,1708291852049,-500.0,0.00039804,2]
[314404438,1708291852058,-782.48,0.00039811,2]
[314404439,1708291852068,-150.0,0.00039838,2]
[314404440,1708291852082,-39472.87888964,0.0003988,2]
[314404441,1708291852091,-387.90270184,0.00039899,30]
[314404442,1708291852100,-14282.00530826,0.000399,4]
[314404443,1708291852110,-1010.13153904,0.000399,4]
[314404444,1708291852122,-5868.00647139,0.000399,2]
[314404445,1708291852131,-3340.91575148,0.000399,2]
[314404446,1708291852140,-541.5276352,0.000399,2]
[314404447,1708291852150,-1313.2976734,0.000399,2]
[314404448,1708291852159,-919.3083714,0.000399,2]
[314404449,1708291852170,-12000.0,0.000399,8]
[314404450,1708291852179,-35801.1019926,0.00039903,2]
[314404451,1708291852188,-500.0,0.00039907,2]
[314404452,1708291852198,-1500.0,0.00039908,2]
[314404453,1708291852206,-150.0,0.0003991,2]
[314404454,1708291852215,-339.53739081,0.00039929,2]
[314404455,1708291852225,-454.29723993,0.00039929,2]
[314404456,1708291852235,-195507.24379964,0.0003993,2]
[314404457,1708291852244,-150.0,0.00039948,7]
[314404458,1708291852253,-300.0,0.00039949,2]
[314404459,1708291852262,-5000.0,0.00039956,2]
[314404460,1708291852271,-500.0,0.00039958,6]
[314404461,1708291852281,-500.0,0.00039958,6]
[314404462,1708291852290,-500.0,0.00039958,6]
[314404463,1708291852299,-571.0394754,0.00039958,6]
[314404464,1708291852308,-400.0,0.0003997,2]
[314404465,1708291852317,-400.0,0.0003997,2]
[314404466,1708291852326,-400.0,0.0003997,2]
[314404467,1708291852335,-300.0,0.0003997,2]
[314404468,1708291852344,-300.0,0.0003997,2]
[314404469,1708291852353,-300.0,0.0003997,2]
[314404470,1708291852362,-200.0,0.00039987,8]
[314404471,1708291852372,-200.0,0.00039987,7]
[314404472,1708291852382,-150.0,0.00039989,2]
[314404473,1708291852391,-300.0,0.00039996,2]
[314404474,1708291852400,-426.8293958,0.00039999,31]
[314404475,1708291852409,-372.22910915,0.00039999,31]
[314404476,1708291852418,-500.0,0.00039999,31]
[314404477,1708291852427,-500.0,0.00039999,31]
[314404478,1708291852436,-457.99707582,0.00039999,31]
[314404479,1708291852445,-580.25039661,0.00039999,31]
[314404480,1708291852455,-500.0,0.00039999,31]
[314404481,1708291852464,-500.0,0.00039999,31]
[314404482,1708291852473,-301.08494495,0.00039999,31]
[314404483,1708291852482,-339.53739081,0.00039999,2]
[314404484,1708291852491,-454.29723993,0.00039999,2]
[314404485,1708291852501,-339.53739081,0.00039999,2]
[314404486,1708291852510,-454.29723993,0.00039999,2]
[314404487,1708291852519,-339.53739081,0.00039999,2]
[314404488,1708291852529,-454.29723993,0.00039999,2]
[314404489,1708291852539,-339.53739081,0.00039999,2]
[314404490,1708291852549,-454.29723993,0.00039999,2]
[314404491,1708291852558,-339.53739081,0.00039999,2]
[314404492,1708291852567,-454.29723993,0.00039999,2]
[314404493,1708291852577,-339.53739081,0.00039999,2]
[314404494,1708291852586,-454.29723993,0.00039999,2]
[314404495,1708291852595,-339.53739081,0.00039999,2]
[314404496,1708291852605,-454.29723993,0.00039999,2]
[314404497,1708291852615,-339.53739081,0.00039999,2]
[314404498,1708291852625,-339.53739081,0.00039999,2]